[Event "Gibraltar Challengers A 2020"]
[Site "Caleta"]
[Date "2020.01.21"]
[Round "1.1"]
[White "Sousa, Ludy Helsio Paulo"]
[Black "Lung, Liviu-Catalin"]
[Result "1-0"]
[ECO "B76"]
[WhiteElo "2247"]
[BlackElo "2041"]
[Annotator "RC"]
[PlyCount "53"]
[EventDate "2020.01.20"]
[EventType "swiss"]
[EventCountry "GGB"]
[SourceTitle "playchess.com"]
[Source "ChessBase"]
[SourceQuality "1"]
[TimeControl "6600+10"]

1. e4 {[%emt 0:00:00]} c5 {[%emt 0:00:56]} 2. Nf3 {[%emt 0:00:20]} d6 {[%emt 0:00:45]} 3. d4 {[%emt 0:00:06]} cxd4 {[%emt 0:00:04]} 4. Nxd4 {[%emt 0:00:07]} Nf6 {[%emt 0:00:04]} 5. Nc3 {[%emt 0:00:11]} g6 {[%emt 0:00:05]} 6. Be3 {[%emt 0:00:24]} Bg7 {[%emt 0:00:07]} 7. f3 {[%emt 0:02:01]} O-O {[%emt 0:00:30]} 8. Qd2 {[%emt 0:00:01]} Nc6 {[%emt 0:00:08]} 9. O-O-O {[%emt 0:00:12]} Nxd4 {[%emt 0:00:18]} 10. Bxd4 {[%emt 0:00:01]} Be6 {[%emt 0:00:10]} 11. Kb1 {[%emt 0:01:59]} Qc7 {[%emt 0:00:44]} 12. Nd5 {[%emt 0:00:16]} Bxd5 {[%emt 0:04:39]} 13. exd5 {[%emt 0:00:14]} Nd7 {[%emt 0:02:16]} 14. Bxg7 {[%emt 0:03:48]} Kxg7 {[%emt 0:00:08]} 15. h4 {[%emt 0:00:28]} h6 {[%emt 0:02:14]} 16. g4 {[%emt 0:06:16]} Ne5 {[%emt 0:08:34]} 17. Be2 {[%emt 0:00:47]} Rac8 {[%emt 0:08:45]} 18. f4 {[%emt 0:23:42]} Nc4 {[%emt 0:04:38]} 19. Bxc4 {[%emt 0:04:22]} Qxc4 {[%emt 0:00:08]} 20. h5 {[%emt 0:00:03]} Rc5 {[%emt 0:14:33]} 21. hxg6 {[%emt 0:01:48]} fxg6 {[%emt 0:00:09]} 22. f5 {[%emt 0:00:11]} Rh8 {[%emt 0:06:38]} 23. Rhe1 {[%emt 0:04:38]} e5 {[%emt 0:03:11]} 24. dxe6 {[%emt 0:00:23]} Rhc8 {[%emt 0:00:56]} 25. e7 {[%emt 0:00:46]} Re8 {[%emt 0:00:39]} 26. Re6 {[%emt 0:00:11]} gxf5 {[%emt 0:00:29]} 27. Qxh6+ {[%emt 0:00:11]} 1-0

[Event "Gibraltar Challengers A 2020"]
[Site "Caleta"]
[Date "2020.01.21"]
[Round "1.2"]
[White "Raghav, Srivathsav V"]
[Black "Meszaros, Andras"]
[Result "1-0"]
[ECO "A00"]
[WhiteElo "2023"]
[BlackElo "2244"]
[Annotator "ChessBase"]
[PlyCount "91"]
[EventDate "2020.01.20"]
[EventType "swiss"]
[EventCountry "GGB"]
[SourceTitle "playchess.com"]
[Source "ChessBase"]
[SourceQuality "1"]
[TimeControl "6600+10"]

1. b3 {[%emt 0:00:07]} d5 {[%emt 0:00:43]} 2. Bb2 {[%emt 0:00:06]} Nf6 {[%emt 0:00:44]} 3. g3 {[%emt 0:00:05]} c6 {[%emt 0:02:31]} 4. Bg2 {[%emt 0:00:04]} Bg4 {[%emt 0:00:52]} 5. h3 {[%emt 0:00:30]} Be6 {[%emt 0:00:34]} 6. e3 {[%emt 0:00:16]} g6 {[%emt 0:00:29]} 7. Ne2 {[%emt 0:00:05]} Bg7 {[%emt 0:00:20]} 8. O-O {[%emt 0:00:44]} h5 {[%emt 0:06:28]} 9. Nbc3 {[%emt 0:01:45]} Qc8 {[%emt 0:01:30]} 10. h4 {[%emt 0:04:28]} Bh3 {[%emt 0:05:58]} 11. d3 {[%emt 0:03:50]} Bxg2 {[%emt 0:00:34]} 12. Kxg2 {[%emt 0:00:15]} e5 {[%emt 0:02:18]} 13. Ba3 {[%emt 0:04:59]} Nbd7 {[%emt 0:01:21]} 14. d4 {[%emt 0:00:10]} Qc7 {[%emt 0:08:40]} 15. dxe5 {[%emt 0:09:55]} Nxe5 {[%emt 0:01:32]} 16. Qd4 {[%emt 0:03:06]} b6 {[%emt 0:07:47]} 17. e4 {[%emt 0:06:54]} O-O-O {[%emt 0:00:57]} 18. exd5 {[%emt 0:04:36]} Nxd5 {[%emt 0:01:21]} 19. Rad1 {[%emt 0:01:46]} Rhe8 {[%emt 0:43:49]} 20. Nxd5 {[%emt 0:04:20]} Rxd5 {[%emt 0:00:09]} 21. Qf4 {[%emt 0:01:13]} Rxd1 {[%emt 0:10:56]} 22. Rxd1 {[%emt 0:00:12]} c5 {[%emt 0:00:05]} 23. Qe4 {[%emt 0:02:10]} Qc6 {[%emt 0:01:51]} 24. Qxc6+ {[%emt 0:02:45]} Nxc6 {[%emt 0:00:23]} 25. Kf1 {[%emt 0:03:05]} Be5 {[%emt 0:00:34]} 26. c3 {[%emt 0:01:19]} Kc7 {[%emt 0:00:15]} 27. Bc1 {[%emt 0:00:07]} Re6 {[%emt 0:01:45]} 28. Bf4 {[%emt 0:01:48]} Rd6 {[%emt 0:00:09]} 29. Bxe5 {[%emt 0:04:50]} Nxe5 {[%emt 0:00:05]} 30. Rxd6 {[%emt 0:00:06]} Kxd6 {[%emt 0:00:01]} 31. Nf4 {[%emt 0:00:15]} b5 {[%emt 0:02:38]} 32. Ke2 {[%emt 0:00:14]} b4 {[%emt 0:01:07]} 33. c4 {[%emt 0:03:14]} a5 {[%emt 0:00:06]} 34. Nd3 {[%emt 0:01:10]} Nc6 {[%emt 0:00:34]} 35. Ke3 {[%emt 0:00:39]} Nd4 {[%emt 0:00:16]} 36. f3 {[%emt 0:02:05]} Ne6 {[%emt 0:00:42]} 37. g4 {[%emt 0:01:32]} Ng7 {[%emt 0:01:35]} 38. Nf2 {[%emt 0:04:27]} f5 {[%emt 0:01:11]} 39. gxh5 {[%emt 0:02:10]} Nxh5 {[%emt 0:00:14]} 40. Nd3 {[%emt 0:00:18]} Ng3 {[%emt 0:01:28]} 41. Kf4 {[%emt 0:06:19]} Ne2+ {[%emt 0:00:07]} 42. Kg5 {[%emt 0:00:11]} Nd4 {[%emt 0:00:11]} 43. Kxg6 {[%emt 0:01:20]} Nxf3 {[%emt 0:00:10]} 44. h5 {[%emt 0:00:07]} f4 {[%emt 0:00:43]} 45. h6 {[%emt 0:00:34]} Nh4+ {[%emt 0:00:48]} 46. Kf6 {[%emt 0:00:17]} 1-0

[Event "Gibraltar Challengers A 2020"]
[Site "Caleta"]
[Date "2020.01.21"]
[Round "1.3"]
[White "Carrascoso Morales, Abel"]
[Black "Rakotomaharo, Yves Andre"]
[Result "1-0"]
[ECO "B31"]
[WhiteElo "2229"]
[BlackElo "2020"]
[Annotator "ChessBase"]
[PlyCount "69"]
[EventDate "2020.01.20"]
[EventType "swiss"]
[EventCountry "GGB"]
[SourceTitle "playchess.com"]
[Source "ChessBase"]
[SourceQuality "1"]
[TimeControl "6600+10"]

1. e4 {[%emt 0:00:00]} c5 {[%emt 0:00:01]} 2. Nf3 {[%emt 0:00:05]} Nc6 {[%emt 0:00:08]} 3. Bb5 {[%emt 0:00:15]} g6 {[%emt 0:00:10]} 4. Bxc6 {[%emt 0:00:32]} dxc6 {[%emt 0:00:13]} 5. h3 {[%emt 0:00:40]} Bg7 {[%emt 0:00:46]} 6. O-O {[%emt 0:00:09]} e5 {[%emt 0:00:50]} 7. d3 {[%emt 0:00:25]} Qd6 {[%emt 0:03:07]} 8. b4 {[%emt 0:03:41]} cxb4 {[%emt 0:00:50]} 9. a3 {[%emt 0:00:16]} Ne7 {[%emt 0:03:27]} 10. axb4 {[%emt 0:00:27]} O-O {[%emt 0:03:59]} 11. Nbd2 {[%emt 0:02:27]} Qc7 {[%emt 0:05:33]} 12. Bb2 {[%emt 0:02:17]} Rd8 {[%emt 0:03:26]} 13. Qe2 {[%emt 0:03:12]} h6 {[%emt 0:03:37]} 14. Nc4 {[%emt 0:02:25]} f6 {[%emt 0:01:31]} 15. d4 {[%emt 0:05:48]} exd4 {[%emt 0:05:51]} 16. Bxd4 {[%emt 0:00:51]} Be6 {[%emt 0:02:28]} 17. Bxa7 {[%emt 0:09:17]} Nc8 {[%emt 0:07:34]} 18. Bd4 {[%emt 0:01:43]} b5 {[%emt 0:01:26]} 19. Ncd2 {[%emt 0:07:55]} Nb6 {[%emt 0:04:23]} 20. Qe3 {[%emt 0:05:27]} Na4 {[%emt 0:00:51]} 21. Rac1 {[%emt 0:06:10]} Qf7 {[%emt 0:02:33]} 22. Nb3 {[%emt 0:03:27]} Bf8 {[%emt 0:04:52]} 23. Qf4 {[%emt 0:05:46]} Kg7 {[%emt 0:08:39]} 24. Ne5 {[%emt 0:02:07]} Qc7 {[%emt 0:06:25]} 25. Nxg6 {[%emt 0:07:06]} Qxf4 {[%emt 0:04:05]} 26. Nxf4 {[%emt 0:00:06]} Bc4 {[%emt 0:01:59]} 27. Rfd1 {[%emt 0:07:08]} Bxb4 {[%emt 0:00:34]} 28. Nh5+ {[%emt 0:02:59]} Kg6 {[%emt 0:00:28]} 29. g4 {[%emt 0:01:40]} Be7 {[%emt 0:01:54]} 30. Kg2 {[%emt 0:01:09]} Kf7 {[%emt 0:01:57]} 31. f3 {[%emt 0:03:53]} b4 {[%emt 0:06:09]} 32. Be3 {[%emt 0:01:50]} Rxd1 {[%emt 0:00:31]} 33. Rxd1 {[%emt 0:00:12]} Nc3 {[%emt 0:00:30]} 34. Rd7 {[%emt 0:03:19]} Bxb3 {[%emt 0:02:39]} 35. Bc5 {[%emt 0:03:38]} 1-0

[Event "Gibraltar Challengers A 2020"]
[Site "Caleta"]
[Date "2020.01.21"]
[Round "1.4"]
[White "Kozarcanin, Sead"]
[Black "Oragwu, Chukwunonso"]
[Result "0-1"]
[ECO "A01"]
[WhiteElo "2019"]
[BlackElo "2220"]
[Annotator "ChessBase"]
[PlyCount "74"]
[EventDate "2020.01.20"]
[EventType "swiss"]
[EventCountry "GGB"]
[SourceTitle "playchess.com"]
[Source "ChessBase"]
[SourceQuality "1"]
[TimeControl "6600+10"]

1. b3 {[%emt 0:00:00]} e5 {[%emt 0:00:03]} 2. Bb2 {[%emt 0:00:00]} Nc6 {[%emt 0:00:10]} 3. e3 {[%emt 0:00:05]} g6 {[%emt 0:00:13]} 4. Bb5 {[%emt 0:01:15]} Nge7 {[%emt 0:01:20]} 5. Nf3 {[%emt 0:06:42]} Bg7 {[%emt 0:00:23]} 6. d3 {[%emt 0:04:54]} O-O {[%emt 0:00:35]} 7. Nbd2 {[%emt 0:03:05]} a6 {[%emt 0:00:52]} 8. Bxc6 {[%emt 0:00:10]} Nxc6 {[%emt 0:00:02]} 9. O-O {[%emt 0:01:13]} d6 {[%emt 0:00:33]} 10. d4 {[%emt 0:02:53]} Qe7 {[%emt 0:07:46]} 11. d5 {[%emt 0:13:15]} Nb8 {[%emt 0:01:14]} 12. c4 {[%emt 0:01:03]} a5 {[%emt 0:00:21]} 13. a3 {[%emt 0:03:07]} c5 {[%emt 0:06:40]} 14. Bc3 {[%emt 0:05:41]} Nd7 {[%emt 0:03:09]} 15. b4 {[%emt 0:06:53]} a4 {[%emt 0:07:33]} 16. Qc2 {[%emt 0:09:06]} f5 {[%emt 0:00:50]} 17. Rfd1 {[%emt 0:01:25]} g5 {[%emt 0:00:28]} 18. Nf1 {[%emt 0:01:17]} g4 {[%emt 0:03:32]} 19. Ne1 {[%emt 0:00:10]} b6 {[%emt 0:09:49]} 20. Ng3 {[%emt 0:02:59]} Qf7 {[%emt 0:00:23]} 21. e4 {[%emt 0:02:33]} fxe4 {[%emt 0:05:32]} 22. Nxe4 {[%emt 0:03:11]} Qg6 {[%emt 0:01:17]} 23. b5 {[%emt 0:01:41]} Rf4 {[%emt 0:00:29]} 24. Nd2 {[%emt 0:01:52]} Qh5 {[%emt 0:04:53]} 25. Ne4 {[%emt 0:01:51]} Qg6 {[%emt 0:04:24]} 26. Nd2 {[%emt 0:00:03]} Rf5 {[%emt 0:14:32]} 27. Ne4 {[%emt 0:00:55]} Nf8 {[%emt 0:03:35]} 28. Bd2 {[%emt 0:02:43]} Rf4 {[%emt 0:02:28]} 29. Bxf4 {[%emt 0:01:12]} exf4 {[%emt 0:00:04]} 30. Kh1 {[%emt 0:06:46]} Bf5 {[%emt 0:00:57]} 31. f3 {[%emt 0:00:23]} Re8 {[%emt 0:04:16]} 32. Rac1 {[%emt 0:16:39]} gxf3 {[%emt 0:00:21]} 33. gxf3 {[%emt 0:02:22]} Rxe4 {[%emt 0:00:11]} 34. Qg2 {[%emt 0:00:11]} Re3 {[%emt 0:00:52]} 35. Qxg6 {[%emt 0:00:51]} Nxg6 {[%emt 0:00:05]} 36. Rd2 {[%emt 0:02:43]} Bc3 {[%emt 0:00:50]} 37. Rdd1 {[%emt 0:00:51]} Bb2 {[%emt 0:00:19]} 0-1

[Event "Gibraltar Challengers A 2020"]
[Site "Caleta"]
[Date "2020.01.21"]
[Round "1.5"]
[White "Piasetski, Leon"]
[Black "Verhoef, Jaap"]
[Result "1-0"]
[ECO "E90"]
[WhiteElo "2219"]
[BlackElo "2015"]
[Annotator "ChessBase"]
[PlyCount "35"]
[EventDate "2020.01.20"]
[EventType "swiss"]
[EventCountry "GGB"]
[SourceTitle "playchess.com"]
[Source "ChessBase"]
[SourceQuality "1"]
[TimeControl "6600+10"]

1. c4 {[%emt 0:00:00]} Nf6 {[%emt 0:00:00]} 2. Nf3 {[%emt 0:00:44]} g6 {[%emt 0:00:00]} 3. Nc3 {[%emt 0:00:16]} Bg7 {[%emt 0:00:00]} 4. e4 {[%emt 0:00:11]} d6 {[%emt 0:00:01]} 5. d4 {[%emt 0:00:08]} O-O {[%emt 0:00:08]} 6. h3 {[%emt 0:02:41]} e5 {[%emt 0:04:36]} 7. d5 {[%emt 0:00:49]} Nh5 {[%emt 0:01:19]} 8. g3 {[%emt 0:03:12]} c6 {[%emt 0:07:09]} 9. Nh2 {[%emt 0:04:23]} f5 {[%emt 0:11:23]} 10. exf5 {[%emt 0:00:14]} Rxf5 {[%emt 0:00:02]} 11. g4 {[%emt 0:20:28]} Rxf2 {[%emt 0:02:02]} 12. Kxf2 {[%emt 0:00:00]} Qh4+ {[%emt 0:00:06]} 13. Kg1 {[%emt 0:00:00]} Na6 {[%emt 0:03:51]} 14. Ne4 {[%emt 0:01:46]} Nf4 {[%emt 0:06:36]} 15. Nf3 {[%emt 0:00:44]} Qd8 {[%emt 0:00:02]} 16. dxc6 {[%emt 0:01:26]} Qb6+ {[%emt 0:04:43]} 17. c5 {[%emt 0:00:37]} Nxc5 {[%emt 0:00:01]} 18. Be3 1-0

[Event "Gibraltar Challengers A 2020"]
[Site "Caleta"]
[Date "2020.01.21"]
[Round "1.6"]
[White "Bujakevich, Aleksandr"]
[Black "Mohota, Nisha"]
[Result "0-1"]
[ECO "C58"]
[WhiteElo "2014"]
[BlackElo "2201"]
[Annotator "ChessBase"]
[PlyCount "48"]
[EventDate "2020.01.20"]
[EventType "swiss"]
[EventCountry "GGB"]
[SourceTitle "playchess.com"]
[Source "ChessBase"]
[SourceQuality "1"]
[TimeControl "6600+10"]

1. e4 {[%emt 0:00:32]} e5 {[%emt 0:00:06]} 2. Nf3 {[%emt 0:00:10]} Nc6 {[%emt 0:00:14]} 3. Bc4 {[%emt 0:00:17]} Nf6 {[%emt 0:00:11]} 4. Ng5 {[%emt 0:00:45]} d5 {[%emt 0:00:34]} 5. exd5 {[%emt 0:00:10]} Na5 {[%emt 0:00:23]} 6. Bb5+ {[%emt 0:00:10]} c6 {[%emt 0:00:30]} 7. dxc6 {[%emt 0:00:07]} bxc6 {[%emt 0:00:19]} 8. Qf3 {[%emt 0:01:14]} Be7 {[%emt 0:01:29]} 9. O-O {[%emt 0:06:19]} O-O {[%emt 0:16:43]} 10. Bd3 {[%emt 0:33:10]} Qc7 {[%emt 0:17:59]} 11. Bf5 {[%emt 0:15:19]} Ba6 {[%emt 0:05:25]} 12. Re1 {[%emt 0:05:26]} g6 {[%emt 0:02:09]} 13. Bd3 {[%emt 0:14:01]} Bc8 {[%emt 0:06:27]} 14. b4 {[%emt 0:04:08]} Bg4 {[%emt 0:11:27]} 15. Qg3 {[%emt 0:07:39]} Bxb4 {[%emt 0:00:03]} 16. Bb2 {[%emt 0:14:03]} Bd6 {[%emt 0:02:26]} 17. Ne4 {[%emt 0:05:54]} Nxe4 {[%emt 0:00:45]} 18. Qxg4 {[%emt 0:00:08]} Nxf2 {[%emt 0:03:13]} 19. Kxf2 {[%emt 0:01:23]} Qb6+ {[%emt 0:00:10]} 20. Kf1 {[%emt 0:00:15]} Qxb2 {[%emt 0:00:33]} 21. Nc3 {[%emt 0:00:02]} f5 {[%emt 0:01:23]} 22. Qa4 {[%emt 0:00:53]} Qb6 {[%emt 0:00:41]} 23. Rab1 {[%emt 0:00:42]} Qc5 {[%emt 0:00:37]} 24. Be2 {[%emt 0:00:42]} e4 {[%emt 0:00:48]} 0-1

[Event "Gibraltar Challengers A 2020"]
[Site "Caleta"]
[Date "2020.01.21"]
[Round "1.7"]
[White "Yanev, Pavel"]
[Black "Burke, Mitchell R"]
[Result "1-0"]
[ECO "B90"]
[WhiteElo "2200"]
[BlackElo "2001"]
[Annotator "ChessBase"]
[PlyCount "143"]
[EventDate "2020.01.20"]
[EventType "swiss"]
[EventCountry "GGB"]
[SourceTitle "playchess.com"]
[Source "ChessBase"]
[SourceQuality "1"]
[TimeControl "6600+10"]

1. e4 {[%emt 0:01:25]} c5 {[%emt 0:00:20]} 2. Nf3 {[%emt 0:00:39]} d6 {[%emt 0:02:09]} 3. d4 {[%emt 0:00:36]} cxd4 {[%emt 0:00:05]} 4. Nxd4 {[%emt 0:00:16]} Nf6 {[%emt 0:00:19]} 5. Nc3 {[%emt 0:00:47]} a6 {[%emt 0:03:20]} 6. h3 {[%emt 0:01:47]} e5 {[%emt 0:03:08]} 7. Nde2 {[%emt 0:01:06]} h5 {[%emt 0:03:37]} 8. Bg5 {[%emt 0:02:06]} Be7 {[%emt 0:11:55]} 9. Bxf6 {[%emt 0:02:47]} Bxf6 {[%emt 0:01:25]} 10. Nd5 {[%emt 0:00:43]} Bg5 {[%emt 0:05:54]} 11. Nec3 {[%emt 0:06:05]} Nc6 {[%emt 0:13:52]} 12. h4 {[%emt 0:07:08]} Bh6 {[%emt 0:02:41]} 13. g3 {[%emt 0:00:42]} Nd4 {[%emt 0:07:27]} 14. Bh3 {[%emt 0:20:08]} Bxh3 {[%emt 0:17:07]} 15. Rxh3 {[%emt 0:01:16]} b5 {[%emt 0:01:50]} 16. Kf1 {[%emt 0:04:41]} g6 {[%emt 0:02:40]} 17. Kg2 {[%emt 0:08:25]} Rb8 {[%emt 0:05:17]} 18. a3 {[%emt 0:07:48]} Bg7 {[%emt 0:02:22]} 19. Rh1 {[%emt 0:07:04]} Qc8 {[%emt 0:01:32]} 20. Ne2 {[%emt 0:04:05]} Qb7 {[%emt 0:09:29]} 21. c3 {[%emt 0:11:48]} Ne6 {[%emt 0:02:23]} 22. Qd3 {[%emt 0:03:32]} O-O {[%emt 0:02:14]} 23. Rad1 {[%emt 0:01:10]} f5 {[%emt 0:02:56]} 24. f3 {[%emt 0:01:13]} Nc5 {[%emt 0:04:09]} 25. Qe3 {[%emt 0:00:58]} Kh7 {[%emt 0:01:05]} 26. exf5 {[%emt 0:01:25]} Rxf5 {[%emt 0:00:22]} 27. g4 {[%emt 0:01:29]} Bh6 {[%emt 0:03:20]} 28. g5 {[%emt 0:01:26]} Bg7 {[%emt 0:00:00]} 29. Ng3 {[%emt 0:01:56]} Rf7 {[%emt 0:00:52]} 30. Ne4 {[%emt 0:01:15]} Nxe4 {[%emt 0:00:33]} 31. fxe4 {[%emt 0:02:53]} Rbf8 {[%emt 0:00:09]} 32. Rdf1 {[%emt 0:01:28]} Qd7 {[%emt 0:00:03]} 33. Rxf7 {[%emt 0:00:13]} Qxf7 {[%emt 0:00:41]} 34. Qe2 {[%emt 0:01:01]} Qd7 {[%emt 0:00:10]} 35. Kg3 {[%emt 0:02:27]} Qf7 {[%emt 0:00:08]} 36. Rh2 {[%emt 0:00:36]} Qd7 {[%emt 0:00:14]} 37. Kg2 {[%emt 0:00:17]} Qf7 {[%emt 0:00:06]} 38. Kg1 {[%emt 0:00:25]} Qd7 {[%emt 0:00:05]} 39. Rf2 {[%emt 0:00:26]} Rxf2 {[%emt 0:00:17]} 40. Qxf2 {[%emt 0:00:31]} Qg4+ {[%emt 0:00:08]} 41. Qg2 {[%emt 0:00:15]} Qxh4 {[%emt 0:00:12]} 42. Kf1 {[%emt 0:00:13]} Kh8 {[%emt 0:00:12]} 43. Ke2 {[%emt 0:00:09]} Kh7 {[%emt 0:00:01]} 44. b4 {[%emt 0:00:24]} Kh8 {[%emt 0:00:15]} 45. Kd2 {[%emt 0:00:07]} Bf8 {[%emt 0:00:11]} 46. c4 {[%emt 0:00:15]} bxc4 {[%emt 0:00:12]} 47. Kc3 {[%emt 0:00:08]} Qe1+ {[%emt 0:00:04]} 48. Kxc4 {[%emt 0:00:08]} Qc1+ {[%emt 0:00:10]} 49. Kb3 {[%emt 0:00:05]} Qd1+ {[%emt 0:00:11]} 50. Kb2 {[%emt 0:00:11]} Qd4+ {[%emt 0:00:06]} 51. Nc3 {[%emt 0:00:11]} Be7 {[%emt 0:00:13]} 52. Kb3 {[%emt 0:00:12]} Kg7 {[%emt 0:00:13]} 53. a4 {[%emt 0:00:13]} Bf8 {[%emt 0:00:14]} 54. b5 {[%emt 0:00:07]} axb5 {[%emt 0:00:12]} 55. axb5 {[%emt 0:00:04]} d5 {[%emt 0:00:05]} 56. exd5 {[%emt 0:00:22]} Bb4 {[%emt 0:00:12]} 57. Qf3 {[%emt 0:00:09]} Bxc3 {[%emt 0:00:10]} 58. Qxc3 {[%emt 0:00:05]} Qxd5+ {[%emt 0:00:04]} 59. Kb4 {[%emt 0:00:06]} Qd6+ {[%emt 0:00:13]} 60. Ka5 {[%emt 0:00:16]} Qd8+ {[%emt 0:00:09]} 61. b6 {[%emt 0:00:06]} Qd5+ {[%emt 0:00:14]} 62. Ka6 {[%emt 0:00:05]} Qa8+ {[%emt 0:00:03]} 63. Kb5 {[%emt 0:00:03]} Qd5+ {[%emt 0:00:14]} 64. Qc5 {[%emt 0:00:07]} Qd7+ {[%emt 0:00:13]} 65. Ka6 {[%emt 0:00:08]} Qa4+ {[%emt 0:00:10]} 66. Kb7 {[%emt 0:00:07]} Qe4+ {[%emt 0:00:12]} 67. Kc7 {[%emt 0:00:07]} Qf4 {[%emt 0:00:10]} 68. Qe7+ {[%emt 0:00:10]} Kg8 {[%emt 0:00:08]} 69. Qe6+ {[%emt 0:00:15]} Kh7 {[%emt 0:00:04]} 70. b7 {[%emt 0:00:14]} e4+ {[%emt 0:00:02]} 71. Qd6 {[%emt 0:00:08]} Qc1+ {[%emt 0:00:08]} 72. Kd7 {[%emt 0:00:06]} 1-0

[Event "Gibraltar Challengers A 2020"]
[Site "Caleta"]
[Date "2020.01.21"]
[Round "1.8"]
[White "Skutta, Bernd"]
[Black "Onabogun, Kolade"]
[Result "0-1"]
[ECO "A81"]
[WhiteElo "1998"]
[BlackElo "2198"]
[Annotator "ChessBase"]
[PlyCount "65"]
[EventDate "2020.01.20"]
[EventType "swiss"]
[EventCountry "GGB"]
[SourceTitle "playchess.com"]
[Source "ChessBase"]
[SourceQuality "1"]
[TimeControl "6600+10"]

1. d4 {[%emt 0:00:00]} f5 {[%emt 0:00:00]} 2. Nf3 {[%emt 0:00:34]} Nf6 {[%emt 0:00:00]} 3. g3 {[%emt 0:00:06]} g6 {[%emt 0:00:03]} 4. b3 {[%emt 0:00:08]} Bg7 {[%emt 0:00:20]} 5. Bb2 {[%emt 0:00:08]} Ne4 {[%emt 0:00:09]} 6. Nbd2 {[%emt 0:02:04]} c5 {[%emt 0:02:30]} 7. Bg2 {[%emt 0:02:39]} Nc6 {[%emt 0:00:31]} 8. e3 {[%emt 0:04:18]} Qa5 {[%emt 0:01:32]} 9. O-O {[%emt 0:02:02]} O-O {[%emt 0:06:49]} 10. Nc4 {[%emt 0:07:31]} Qc7 {[%emt 0:01:09]} 11. d5 {[%emt 0:08:10]} Bxb2 {[%emt 0:07:51]} 12. Nxb2 {[%emt 0:02:54]} Na5 {[%emt 0:03:07]} 13. c4 {[%emt 0:36:42]} e5 {[%emt 0:06:32]} 14. d6 {[%emt 0:01:44]} Qxd6 {[%emt 0:07:23]} 15. Qxd6 {[%emt 0:01:03]} Nxd6 {[%emt 0:00:02]} 16. Nxe5 {[%emt 0:00:33]} Ne8 {[%emt 0:04:29]} 17. Na4 {[%emt 0:10:40]} d6 {[%emt 0:05:52]} 18. Nf3 {[%emt 0:04:19]} Rb8 {[%emt 0:02:04]} 19. Ng5 {[%emt 0:04:14]} h6 {[%emt 0:02:35]} 20. Nf3 {[%emt 0:05:34]} Bd7 {[%emt 0:00:49]} 21. Nc3 {[%emt 0:02:16]} a6 {[%emt 0:01:07]} 22. Rfd1 {[%emt 0:00:55]} Be6 {[%emt 0:16:32]} 23. e4 {[%emt 0:06:05]} f4 {[%emt 0:06:16]} 24. e5 {[%emt 0:00:35]} fxg3 {[%emt 0:01:45]} 25. fxg3 {[%emt 0:03:28]} Bg4 {[%emt 0:03:10]} 26. Rf1 {[%emt 0:00:31]} Nc6 {[%emt 0:00:44]} 27. Nd5 {[%emt 0:03:17]} dxe5 {[%emt 0:05:48]} 28. Nh4 {[%emt 0:00:38]} Rxf1+ {[%emt 0:05:30]} 29. Rxf1 {[%emt 0:00:02]} g5 {[%emt 0:00:07]} 30. Ng6 {[%emt 0:00:22]} Kg7 {[%emt 0:00:26]} 31. Nge7 {[%emt 0:01:26]} Nxe7 {[%emt 0:00:37]} 32. Nxe7 {[%emt 0:00:01]} Nd6 {[%emt 0:03:08]} 33. Re1 {[%emt 0:00:22]} 0-1

[Event "Gibraltar Challengers A 2020"]
[Site "Caleta"]
[Date "2020.01.21"]
[Round "1.9"]
[White "Ajele, Rotimi"]
[Black "Filipovich, David"]
[Result "1/2-1/2"]
[ECO "A41"]
[WhiteElo "2188"]
[BlackElo "1995"]
[Annotator "ChessBase"]
[PlyCount "56"]
[EventDate "2020.01.20"]
[EventType "swiss"]
[EventCountry "GGB"]
[SourceTitle "playchess.com"]
[Source "ChessBase"]
[SourceQuality "1"]
[TimeControl "6600+10"]

1. d4 {[%emt 0:00:00]} g6 {[%emt 0:00:35]} 2. Nf3 {[%emt 0:01:09]} Bg7 {[%emt 0:00:12]} 3. c4 {[%emt 0:02:47]} d6 {[%emt 0:00:29]} 4. g3 {[%emt 0:01:00]} Nd7 {[%emt 0:00:37]} 5. Bg2 {[%emt 0:00:24]} e5 {[%emt 0:00:42]} 6. O-O {[%emt 0:02:11]} Ne7 {[%emt 0:00:43]} 7. Nc3 {[%emt 0:02:05]} O-O {[%emt 0:00:42]} 8. dxe5 {[%emt 0:02:46]} dxe5 {[%emt 0:13:02]} 9. Qc2 {[%emt 0:04:52]} c6 {[%emt 0:19:50]} 10. Rd1 {[%emt 0:04:06]} Qc7 {[%emt 0:11:48]} 11. b3 {[%emt 0:02:37]} Rd8 {[%emt 0:15:38]} 12. Bb2 {[%emt 0:04:20]} Nc5 {[%emt 0:14:40]} 13. Rxd8+ {[%emt 0:02:11]} Qxd8 {[%emt 0:00:07]} 14. Rd1 {[%emt 0:00:21]} Qb6 {[%emt 0:01:36]} 15. Ne4 {[%emt 0:18:47]} Nxe4 {[%emt 0:03:05]} 16. Qxe4 {[%emt 0:00:18]} Bf5 {[%emt 0:00:13]} 17. Qh4 {[%emt 0:00:54]} f6 {[%emt 0:08:23]} 18. g4 {[%emt 0:07:31]} Be4 {[%emt 0:00:29]} 19. Nxe5 {[%emt 0:10:33]} Bxg2 {[%emt 0:03:25]} 20. Nd7 {[%emt 0:00:18]} Qa5 {[%emt 0:04:34]} 21. Kxg2 {[%emt 0:06:14]} Qxa2 {[%emt 0:01:00]} 22. Bxf6 {[%emt 0:00:39]} Qxe2 {[%emt 0:00:40]} 23. Bxg7 {[%emt 0:01:34]} Qxd1 {[%emt 0:00:15]} 24. Qxe7 {[%emt 0:11:25]} Qxg4+ {[%emt 0:00:11]} 25. Kf1 {[%emt 0:00:26]} Qd1+ {[%emt 0:00:12]} 26. Kg2 {[%emt 0:00:19]} Qg4+ {[%emt 0:00:09]} 27. Kh1 {[%emt 0:00:43]} Qd1+ {[%emt 0:00:39]} 28. Kg2 {[%emt 0:00:07]} Qg4+ {[%emt 0:00:04]} 1/2-1/2